[Event "Int SVK-ch Open 2020"]
[Site "Drienica"]
[Date "2020.08.15"]
[Round "8.23"]
[White "Sosovickova, Jana"]
[Black "Skovran, Jaroslav"]
[Result "1-0"]
[ECO "C41"]
[WhiteElo "1829"]
[BlackElo "1975"]
[Annotator "ChessBase"]
[PlyCount "39"]
[EventDate "2020.08.07"]
[EventType "swiss"]
[EventCountry "SVK"]
[TimeControl "40/5400+30:1800+30"]

1. e4 {[%emt 0:00:00]} d6 {[%emt 0:00:00]} 2. d4 {[%emt 0:00:40]} Nf6 {[%emt 0:00:08]} 3. Nc3 {[%emt 0:01:51]} Nbd7 {[%emt 0:00:51]} 4. Nf3 {[%emt 0:02:57]} e5 {[%emt 0:00:27]} 5. dxe5 {[%emt 0:02:26]} dxe5 {[%emt 0:00:22]} 6. Bc4 {[%emt 0:02:27]} c6 {[%emt 0:00:26]} 7. Ng5 {[%emt 0:05:48]} Bc5 {[%emt 0:10:27]} 8. Bxf7+ {[%emt 0:13:38]} Ke7 {[%emt 0:09:08]} 9. O-O {[%emt 0:10:09]} b5 {[%emt 0:12:05]} 10. Bb3 {[%emt 0:07:32]} Qb6 {[%emt 0:09:08]} 11. Ne6 {[%emt 0:06:21]} a5 {[%emt 0:01:03]} 12. a3 {[%emt 0:05:06]} h5 {[%emt 0:07:58]} 13. Bg5 {[%emt 0:06:26]} Ba6 {[%emt 0:13:26]} 14. Nxg7 {[%emt 0:08:49]} Raf8 {[%emt 0:11:59]} 15. Qd2 {[%emt 0:07:23]} Bd4 {[%emt 0:09:13]} 16. Rad1 {[%emt 0:05:59]} Qa7 {[%emt 0:00:44]} 17. Ne2 {[%emt 0:03:23]} b4 {[%emt 0:06:02]} 18. axb4 {[%emt 0:02:13]} axb4 {[%emt 0:00:13]} 19. Qxb4+ {[%emt 0:01:29]} Bc5 {[%emt 0:01:54]} 20. Qd2 {[%emt 0:00:35]} 1-0

[Event "Int SVK-ch Open 2020"]
[Site "Drienica"]
[Date "2020.08.15"]
[Round "8.24"]
[White "Steiniger, Florian"]
[Black "Tomcikova, Zuzana"]
[Result "1/2-1/2"]
[ECO "B18"]
[WhiteElo "1889"]
[BlackElo "1776"]
[Annotator "NA"]
[PlyCount "50"]
[EventDate "2020.08.07"]
[EventType "swiss"]
[EventCountry "SVK"]
[TimeControl "40/5400+30:1800+30"]

1. e4 {[%emt 0:00:00]} c6 {[%emt 0:00:00]} 2. d4 {[%emt 0:00:00]} d5 {[%emt 0:00:00]} 3. Nc3 {[%emt 0:00:00]} dxe4 {[%emt 0:00:00]} 4. Nxe4 {[%emt 0:00:04]} Bf5 {[%emt 0:00:03]} 5. Ng3 {[%emt 0:00:07]} Bg6 {[%emt 0:00:05]} 6. h4 {[%emt 0:00:05]} h6 {[%emt 0:00:07]} 7. Nh3 {[%emt 0:01:27]} Nf6 {[%emt 0:07:26]} 8. Bc4 {[%emt 0:01:00]} Nd5 {[%emt 0:04:17]} 9. Nf4 {[%emt 0:08:36]} Nxf4 {[%emt 0:02:33]} 10. Bxf4 {[%emt 0:00:09]} e6 {[%emt 0:09:41]} 11. c3 {[%emt 0:08:54]} Bd6 {[%emt 0:02:05]} 12. Bxd6 {[%emt 0:05:00]} Qxd6 {[%emt 0:00:08]} 13. Qe2 {[%emt 0:00:12]} Nd7 {[%emt 0:05:02]} 14. Ne4 {[%emt 0:05:51]} Bxe4 {[%emt 0:01:10]} 15. Qxe4 {[%emt 0:00:08]} Nf6 {[%emt 0:00:06]} 16. Qf3 {[%emt 0:03:31]} O-O-O {[%emt 0:02:33]} 17. O-O-O {[%emt 0:01:22]} Qc7 {[%emt 0:02:41]} 18. Rhe1 {[%emt 0:04:54]} Rhe8 {[%emt 0:01:31]} 19. Re5 {[%emt 0:03:00]} Nd5 {[%emt 0:06:13]} 20. Rde1 {[%emt 0:03:30]} Re7 {[%emt 0:04:13]} 21. Bxd5 {[%emt 0:02:50]} Rxd5 {[%emt 0:00:10]} 22. Qg4 {[%emt 0:03:16]} g6 {[%emt 0:04:07]} 23. Rxd5 {[%emt 0:01:54]} cxd5 {[%emt 0:00:08]} 24. Qf3 {[%emt 0:01:38]} h5 {[%emt 0:04:39]} 25. Qf6 {[%emt 0:02:10]} Rd7 {[%emt 0:01:38]} 1/2-1/2

[Event "Int SVK-ch Open 2020"]
[Site "Drienica"]
[Date "2020.08.14"]
[Round "8.24"]
[White "Sosovickova, Martina"]
[Black "Dragula, Miroslav"]
[Result "0-1"]
[ECO "C13"]
[WhiteElo "1362"]
[BlackElo "1566"]
[Annotator "NA"]
[PlyCount "76"]
[EventDate "2020.08.07"]
[EventType "swiss"]
[EventCountry "SVK"]
[SourceTitle "playchess.com"]
[Source "ChessBase"]
[SourceQuality "1"]
[TimeControl "40/5400+30:1800+30"]

1. e4 e6 2. d4 d5 3. Nc3 Nf6 4. Bg5 Be7 5. exd5 Nxd5 6. Bxe7 Nxe7 7. Nf3 O-O 8. Bc4 c6 9. O-O Nd7 10. Re1 Nf6 11. Qd2 Qc7 12. Rad1 Ned5 13. Ne4 Qd8 14. c3 Nxe4 15. Rxe4 Nf6 16. Re2 h6 17. Rde1 b6 18. h3 Bb7 19. Bd3 Qc7 20. Qe3 Rad8 21. Rd2 Nd5 22. Qe4 Nf6 23. Qe3 c5 24. dxc5 bxc5 25. Red1 Bxf3 26. Qxf3 Rd5 27. Bc4 Rf5 28. Qe3 Rf4 29. Bf1 Nd5 30. Qg3 Qe5 31. c4 Nf6 32. Re2 Qf5 33. Rde1 Ne4 34. Rxe4 Rxe4 35. Rxe4 Qxe4 36. Kh2 f6 37. Bd3 Qe5 38. f4 Qd6 0-1

[Event "Int SVK-ch Open 2020"]
[Site "Drienica"]
[Date "2020.08.15"]
[Round "8.25"]
[White "Dujava, Daniel"]
[Black "Bochnickova, Simona"]
[Result "1-0"]
[ECO "C67"]
[WhiteElo "2111"]
[BlackElo "1797"]
[Annotator "ChessBase"]
[PlyCount "81"]
[EventDate "2020.08.07"]
[EventType "swiss"]
[EventCountry "SVK"]
[TimeControl "40/5400+30:1800+30"]

1. e4 {[%emt 0:00:00]} e5 {[%emt 0:00:00]} 2. Nf3 {[%emt 0:00:00]} Nc6 {[%emt 0:00:00]} 3. Bb5 {[%emt 0:00:00]} Nf6 {[%emt 0:00:00]} 4. O-O {[%emt 0:00:22]} Nxe4 {[%emt 0:00:00]} 5. Re1 {[%emt 0:00:40]} Nd6 {[%emt 0:00:13]} 6. Nxe5 {[%emt 0:00:29]} Be7 {[%emt 0:03:49]} 7. Bd3 {[%emt 0:06:07]} O-O {[%emt 0:07:03]} 8. Nc3 {[%emt 0:03:40]} b6 {[%emt 0:09:03]} 9. b3 {[%emt 0:10:52]} Bb7 {[%emt 0:04:51]} 10. Qh5 {[%emt 0:06:59]} h6 {[%emt 0:01:37]} 11. Ba3 {[%emt 0:01:44]} Nxe5 {[%emt 0:10:19]} 12. Rxe5 {[%emt 0:00:46]} Bf6 {[%emt 0:00:45]} 13. Re2 {[%emt 0:02:30]} c5 {[%emt 0:06:48]} 14. Rae1 {[%emt 0:02:52]} Bg5 {[%emt 0:01:11]} 15. g3 {[%emt 0:13:42]} Qc7 {[%emt 0:05:05]} 16. Ne4 {[%emt 0:08:36]} Nxe4 {[%emt 0:07:38]} 17. Bxe4 {[%emt 0:00:18]} Bxe4 {[%emt 0:01:08]} 18. Rxe4 {[%emt 0:00:07]} d5 {[%emt 0:00:34]} 19. R4e2 {[%emt 0:00:36]} Qc6 {[%emt 0:01:20]} 20. d4 {[%emt 0:04:14]} Rfd8 {[%emt 0:04:41]} 21. dxc5 {[%emt 0:01:17]} bxc5 {[%emt 0:00:04]} 22. Bb2 {[%emt 0:07:31]} Re8 {[%emt 0:01:20]} 23. h4 {[%emt 0:00:52]} Rxe2 {[%emt 0:02:11]} 24. Rxe2 {[%emt 0:02:08]} Bd8 {[%emt 0:06:29]} 25. Qf3 {[%emt 0:03:15]} Rc8 {[%emt 0:02:33]} 26. c4 {[%emt 0:03:17]} Qg6 {[%emt 0:01:58]} 27. Re8+ {[%emt 0:05:09]} Kh7 {[%emt 0:00:04]} 28. Qxd5 {[%emt 0:00:53]} Bxh4 {[%emt 0:00:37]} 29. Rxc8 {[%emt 0:01:49]} Bxg3 {[%emt 0:00:07]} 30. fxg3 {[%emt 0:01:58]} Qxg3+ {[%emt 0:01:18]} 31. Qg2 {[%emt 0:00:51]} Qe1+ {[%emt 0:00:13]} 32. Qf1 {[%emt 0:01:29]} Qg3+ {[%emt 0:00:15]} 33. Kh1 {[%emt 0:00:19]} Qh4+ {[%emt 0:00:17]} 34. Kg2 {[%emt 0:01:21]} Qg4+ {[%emt 0:00:41]} 35. Kf2 {[%emt 0:00:38]} Qf5+ {[%emt 0:00:09]} 36. Ke2 {[%emt 0:01:17]} Qxc8 {[%emt 0:01:17]} 37. Qb1+ {[%emt 0:01:59]} Kg8 {[%emt 0:00:37]} 38. Qe4 {[%emt 0:00:56]} Qh3 {[%emt 0:01:13]} 39. Be5 {[%emt 0:01:27]} Qh5+ {[%emt 0:00:21]} 40. Kd2 {[%emt 0:00:39]} Qg5+ {[%emt 0:00:22]} 41. Kc2 {[%emt 0:31:00]} 1-0

[Event "Int SVK-ch Open 2020"]
[Site "Drienica"]
[Date "2020.08.15"]
[Round "9.1"]
[White "Manik, Mikulas"]
[Black "Hros, Roman"]
[Result "1/2-1/2"]
[ECO "B47"]
[WhiteElo "2366"]
[BlackElo "2199"]
[Annotator "ChessBase"]
[PlyCount "21"]
[EventDate "2020.08.07"]
[EventType "swiss"]
[EventCountry "SVK"]
[SourceTitle "playchess.com"]
[Source "ChessBase"]
[SourceQuality "1"]
[TimeControl "40/5400+30:1800+30"]

1. e4 {[%emt 0:00:00]} c5 {[%emt 0:00:00]} 2. Nf3 {[%emt 0:00:00]} e6 {[%emt 0:00:00]} 3. d4 {[%emt 0:00:00]} cxd4 {[%emt 0:00:00]} 4. Nxd4 {[%emt 0:00:00]} Nc6 {[%emt 0:00:00]} 5. Nc3 {[%emt 0:00:00]} Qc7 {[%emt 0:00:00]} 6. f4 {[%emt 0:00:16]} a6 {[%emt 0:00:06]} 7. Nxc6 {[%emt 0:00:17]} bxc6 {[%emt 0:00:22]} 8. Bd3 {[%emt 0:00:24]} d5 {[%emt 0:00:06]} 9. Qe2 {[%emt 0:00:21]} Be7 {[%emt 0:01:03]} 10. O-O {[%emt 0:00:38]} Nf6 {[%emt 0:00:01]} 11. e5 {[%emt 0:00:24]} 1/2-1/2

[Event "Int SVK-ch Open 2020"]
[Site "Drienica"]
[Date "2020.08.15"]
[Round "9.2"]
[White "Paluska, Karol"]
[Black "Steiniger, Florian"]
[Result "0-1"]
[ECO "A40"]
[WhiteElo "1873"]
[BlackElo "1889"]
[Annotator "NA"]
[PlyCount "95"]
[EventDate "2020.08.07"]
[EventType "swiss"]
[EventCountry "SVK"]
[SourceTitle "playchess.com"]
[Source "ChessBase"]
[SourceQuality "1"]
[TimeControl "40/5400+30:1800+30"]

{[%evp 19,94,-6,0,32767,16,-13,-2,-31,-15,-16,32767,32767,32767,-12,32767,32767,32767,-60,-68,-74,32767,-108,-104,-102,-100,-115,-24,-14,-8,-57,-45,-72,-98,-73,-63,-82,-67,-95,32767,-248,-253,-414,-472,-634,-441,32767,32767,-850,-979,32767,-726,-693,-1018,-1073,-997,-1262,-5397,32767,32767,32767,32767,-29998,32767,32767,32767,32767,32767,32767,32767,-5858,32767,32767,-12839,-12833,-29979,-29971,-29977]} 1. d4 {[%emt 0:00:00]} g6 {[%emt 0:00:00]} 2. c4 {[%emt 0:00:00]} Bg7 {[%emt 0:01:26]} 3. Nc3 {[%emt 0:00:00]} c5 {[%emt 0:00:05]} 4. e3 {[%emt 0:00:58]} cxd4 {[%emt 0:00:50]} 5. exd4 {[%emt 0:00:12]} Nf6 {[%emt 0:00:10]} 6. Nf3 {[%emt 0:00:14]} O-O {[%emt 0:00:34] A31: Symmetrical English: 2 Nf3 Nf6 3 d4.} 7. Be3 {[%emt 0:01:22] Recently 7.Bg5 got a lot of attention.} d6 {[%emt 0:01:15]} 8. Qd2 {[%emt 0:00:43]} Ng4 {[%emt 0:00:42]} 9. Be2 {[%emt 0:03:17]} Nxe3 {[%emt 0:00:28]} 10. Qxe3 {[%emt 0:04:53]} Nc6 {[%emt 0:02:57] [#]} 11. Qd2 $146 {[%emt 0:04:08]} ({Predecessor:} 11. a3 Qb6 12. Na4 Qa5+ 13. Nc3 Bg4 14. O-O Bxf3 15. Bxf3 Bxd4 16. b4 Bxe3 17. bxa5 {0-1 (35) Lueth,G-Henkel,R Borkum 1996}) 11... Bf5 {[%emt 0:07:51]} (11... e5 $15) 12. O-O {[%emt 0:03:44]} (12. d5 $5 {[%cal Rd5c6]} Nb4 13. O-O $11) 12... Rc8 {[%emt 0:06:16]} 13. Rac1 {[%emt 0:03:10]} (13. d5 $5 {[%cal Rd5c6]} Ne5 14. Nxe5 Bxe5 15. h3 $11) 13... a6 {[%emt 0:03:01]} 14. Rfd1 {[%emt 0:00:36]} Re8 {[%emt 0:00:30]} 15. d5 {[%emt 0:02:03]} Ne5 {[%emt 0:01:16]} 16. Nxe5 {[%emt 0:01:01]} Bxe5 {[%emt 0:00:09]} 17. f4 {[%emt 0:00:41]} Bg7 {[%emt 0:00:49]} 18. g4 {[%emt 0:00:49]} Bd7 {[%emt 0:00:18]} 19. Kg2 {[%emt 0:01:15]} Qa5 {[%emt 0:06:17]} 20. h4 {[%emt 0:04:57]} (20. b3 $15) 20... b5 {[%emt 0:01:40]} 21. b3 {[%emt 0:14:53]} bxc4 {[%emt 0:01:19]} 22. bxc4 {[%emt 0:00:45]} e6 {[%emt 0:04:20]} (22... Rb8 $17 23. Rc2 Qc5) 23. Ne4 {[%emt 0:02:48]} Qc7 {[%emt 0:07:56]} 24. c5 {[%emt 0:12:41]} dxc5 {[%emt 0:01:13]} 25. Nxc5 {[%emt 0:08:50]} exd5 {[%emt 0:03:13]} 26. Ne6 {[%emt 0:02:38]} Qd6 {[%emt 0:01:07]} ({Of course not} 26... Bxe6 27. Rxc7 Rxc7 28. Rc1 $11) 27. Nxg7 {[%emt 0:00:19]} Kxg7 {[%emt 0:00:06]} 28. Rxc8 {[%emt 0:02:53]} Rxc8 {[%emt 0:01:30]} 29. g5 {[%emt 0:05:15] [#]} (29. Qd4+ $17 {was worth a try.} Kg8 30. Bf3) 29... Qe6 $1 {[%emt 0:07:07]} 30. Qd3 $2 {[%emt 0:05:42]} (30. f5 Qxf5 31. Kg1) 30... Rc4 {[%emt 0:05:20]} 31. h5 {[%emt 0:03:13]} gxh5 {[%emt 0:07:31]} 32. f5 {[%emt 0:02:03]} Qe5 {[%emt 0:04:20]} 33. f6+ {[%emt 0:01:16]} Kg8 {[%emt 0:00:13]} 34. Rb1 {[%emt 0:05:38]} Bf5 {[%emt 0:06:50]} 35. Rb8+ {[%emt 0:03:56]} Qxb8 {[%emt 0:00:06]} 36. Qxf5 {[%emt 0:00:28]} Re4 {[%emt 0:03:37]} 37. Bd3 {[%emt 0:00:27]} Rg4+ {[%emt 0:01:47]} 38. Kf3 {[%emt 0:00:21]} Qg3+ {[%emt 0:02:44]} 39. Ke2 {[%emt 0:00:06]} Qh2+ {[%emt 0:00:27]} 40. Ke3 {[%emt 0:00:18]} Qh3+ {[%emt 0:00:32]} 41. Kd2 {[%emt 0:31:04]} Rg2+ {[%emt 0:30:15]} 42. Kc3 {[%emt 0:00:06]} Qxf5 {[%emt 0:00:07]} 43. Bxf5 {[%emt 0:00:05]} Rxg5 {[%emt 0:00:06]} 44. Bc8 {[%emt 0:00:09]} a5 {[%emt 0:00:14]} 45. Kd4 {[%emt 0:00:05]} Rg2 {[%emt 0:00:51]} 46. a4 {[%emt 0:00:05]} h4 {[%emt 0:01:15]} 47. Kxd5 {[%emt 0:00:07]} Ra2 {[%emt 0:00:24]} 48. Kd4 0-1

[Event "Int SVK-ch Open 2020"]
[Site "Drienica"]
[Date "2020.08.15"]
[Round "9.3"]
[White "Tomcikova, Zuzana"]
[Black "Durica, Daniel"]
[Result "1/2-1/2"]
[ECO "B06"]
[WhiteElo "1776"]
[BlackElo "1937"]
[Annotator "ChessBase"]
[PlyCount "41"]
[EventDate "2020.08.07"]
[EventType "swiss"]
[EventCountry "SVK"]
[SourceTitle "playchess.com"]
[Source "ChessBase"]
[SourceQuality "1"]
[TimeControl "40/5400+30:1800+30"]

1. e4 {[%emt 0:00:00]} g6 {[%emt 0:42:46]} 2. d4 {[%emt 0:00:00]} Bg7 {[%emt 0:00:28]} 3. f4 {[%emt 0:00:59]} d6 {[%emt 0:01:35]} 4. Nc3 {[%emt 0:00:20]} Nf6 {[%emt 0:00:29]} 5. e5 {[%emt 0:00:13]} dxe5 {[%emt 0:05:46]} 6. dxe5 {[%emt 0:00:08]} Qxd1+ {[%emt 0:00:09]} 7. Kxd1 {[%emt 0:00:06]} Ng4 {[%emt 0:01:21]} 8. Nd5 {[%emt 0:00:39]} Kd7 {[%emt 0:04:37]} 9. Ke1 {[%emt 0:01:55]} c6 {[%emt 0:01:46]} 10. Ne3 {[%emt 0:01:52]} Kc7 {[%emt 0:00:19]} 11. c3 {[%emt 0:03:23]} f6 {[%emt 0:04:19]} 12. Nxg4 {[%emt 0:06:44]} Bxg4 {[%emt 0:00:04]} 13. h3 {[%emt 0:00:13]} Bf5 {[%emt 0:01:19]} 14. exf6 {[%emt 0:05:38]} exf6 {[%emt 0:01:05]} 15. Nf3 {[%emt 0:01:41]} Nd7 {[%emt 0:11:47]} 16. Be3 {[%emt 0:03:37]} Rhe8 {[%emt 0:04:21]} 17. Kf2 {[%emt 0:01:38]} Nb6 {[%emt 0:00:35]} 18. Bxb6+ {[%emt 0:05:37]} axb6 {[%emt 0:02:54]} 19. Nd4 {[%emt 0:01:08]} Be4 {[%emt 0:00:46]} 20. Bc4 {[%emt 0:02:24]} Bh6 {[%emt 0:06:17]} 21. Rhe1 {[%emt 0:05:41]} 1/2-1/2

[Event "Int SVK-ch Open 2020"]
[Site "Drienica"]
[Date "2020.08.15"]
[Round "9.4"]
[White "Juhar, Roman"]
[Black "Majek, Kacper"]
[Result "0-1"]
[ECO "D59"]
[WhiteElo "2225"]
[BlackElo "1970"]
[Annotator "ChessBase"]
[PlyCount "80"]
[EventDate "2020.08.07"]
[EventType "swiss"]
[EventCountry "SVK"]
[SourceTitle "playchess.com"]
[Source "ChessBase"]
[SourceQuality "1"]
[TimeControl "40/5400+30:1800+30"]

1. d4 {[%emt 0:00:00]} d5 {[%emt 0:03:10]} 2. c4 {[%emt 0:00:00]} e6 {[%emt 0:00:20]} 3. Nc3 {[%emt 0:00:00]} Nf6 {[%emt 0:00:09]} 4. Bg5 {[%emt 0:00:00]} Be7 {[%emt 0:00:06]} 5. e3 {[%emt 0:00:07]} h6 {[%emt 0:00:05]} 6. Bh4 {[%emt 0:00:07]} O-O {[%emt 0:00:10]} 7. Rc1 {[%emt 0:00:12]} b6 {[%emt 0:00:35]} 8. cxd5 {[%emt 0:00:07]} Nxd5 {[%emt 0:00:19]} 9. Nxd5 {[%emt 0:00:28]} exd5 {[%emt 0:00:07]} 10. Bxe7 {[%emt 0:00:26]} Qxe7 {[%emt 0:00:05]} 11. Nf3 {[%emt 0:00:28]} Bb7 {[%emt 0:00:17]} 12. Bd3 {[%emt 0:00:20]} c5 {[%emt 0:02:05]} 13. b3 {[%emt 0:00:55]} Nd7 {[%emt 0:01:26]} 14. O-O {[%emt 0:01:00]} Rac8 {[%emt 0:02:06]} 15. Qd2 {[%emt 0:03:04]} Rc7 {[%emt 0:04:07]} 16. Rc3 {[%emt 0:00:59]} Rfc8 {[%emt 0:00:35]} 17. Rfc1 {[%emt 0:01:16]} g6 {[%emt 0:02:17]} 18. Qb2 {[%emt 0:01:41]} Qe6 {[%emt 0:15:27]} 19. Bb5 {[%emt 0:05:28]} Nf6 {[%emt 0:00:56]} 20. Ne5 {[%emt 0:18:28]} c4 {[%emt 0:07:33]} 21. bxc4 {[%emt 0:01:45]} a6 {[%emt 0:00:24]} 22. cxd5 {[%emt 0:02:12]} Qxd5 {[%emt 0:00:53]} 23. Bf1 {[%emt 0:00:29]} Rxc3 {[%emt 0:11:28]} 24. Rxc3 {[%emt 0:00:42]} Rxc3 {[%emt 0:00:06]} 25. Qxc3 {[%emt 0:00:07]} Qxa2 {[%emt 0:02:51]} 26. Qc7 {[%emt 0:02:14]} Bd5 {[%emt 0:03:00]} 27. Qxb6 {[%emt 0:01:56]} Ne4 {[%emt 0:00:09]} 28. Nd3 {[%emt 0:01:18]} a5 {[%emt 0:14:11]} 29. f3 {[%emt 0:32:54]} Nd2 {[%emt 0:00:04]} 30. Be2 {[%emt 0:08:09]} a4 {[%emt 0:00:26]} 31. Nb4 {[%emt 0:03:37]} Qb1+ {[%emt 0:04:01]} 32. Kf2 {[%emt 0:00:09]} Kh7 {[%emt 0:05:59]} 33. Qa5 {[%emt 0:02:28]} Bb3 {[%emt 0:00:40]} 34. Nc6 {[%emt 0:00:40]} Qc2 {[%emt 0:01:26]} 35. Ne7 {[%emt 0:01:19]} Bc4 {[%emt 0:01:13]} 36. Qd8 {[%emt 0:01:42]} Ne4+ {[%emt 0:00:07]} 37. fxe4 {[%emt 0:01:44]} Qxe2+ {[%emt 0:00:07]} 38. Kg3 {[%emt 0:00:04]} Qxe3+ {[%emt 0:00:06]} 39. Kh4 {[%emt 0:00:18]} g5+ {[%emt 0:00:36]} 40. Kg4 {[%emt 0:00:24]} Qf4+ {[%emt 0:00:11]} 0-1

[Event "Int SVK-ch Open 2020"]
[Site "Drienica"]
[Date "2020.08.15"]
[Round "9.5"]
[White "Janik, Marek Tobias"]
[Black "Marsina, Stefan"]
[Result "1-0"]
[ECO "A20"]
[WhiteElo "1549"]
[BlackElo "1854"]
[Annotator "NA RC"]
[PlyCount "69"]
[EventDate "2020.08.07"]
[EventType "swiss"]
[EventCountry "SVK"]
[SourceTitle "playchess.com"]
[Source "ChessBase"]
[SourceQuality "1"]
[TimeControl "40/5400+30:1800+30"]

{[%evp 15,61,51,55,-12,-18,-11,10,11,32767,32767,32767,8,34,-1,18,31,45,25,62,54,92,64,85,98,32767,99,92,101,102,0,0,4,29,60,95,113,191,178,170,185,32767,259,229,244,250,32767,518,663]} 1. c4 {[%emt 0:00:00]} e5 {[%emt 0:03:24]} 2. g3 {[%emt 0:00:00]} Nf6 {[%emt 0:01:00]} 3. Bg2 {[%emt 0:00:02]} Nc6 {[%emt 0:01:36]} 4. Nc3 {[%emt 0:00:32]} d6 {[%emt 0:00:38]} 5. e3 {[%emt 0:01:35]} Be6 {[%emt 0:01:04]} 6. b3 {[%emt 0:02:01] A25: English Opening vs King's Indian with ...Nc6 but without early d3.} Be7 {[%emt 0:01:39]} 7. Nge2 {[%emt 0:01:01]} Qd7 {[%emt 0:00:26]} 8. d4 {[%emt 0:05:15]} Bh3 {[%emt 0:09:15] [#]} 9. Bxh3 $146 {[%emt 0:01:08]} ({Predecessor:} 9. O-O $1 $14 h5 10. dxe5 Nxe5 11. Bxh3 Qxh3 12. Nf4 Qd7 13. Ng2 h4 14. Nxh4 Qh3 15. f4 {0-1 (22) Okonek,W-Kowara,M (1876) Poznan 2011}) 9... Qxh3 {[%emt 0:00:04]} 10. d5 {[%emt 0:03:02]} Nb8 {[%emt 0:02:00]} 11. Ng1 {[%emt 0:12:44]} Qf5 {[%emt 0:00:58]} 12. Qf3 {[%emt 0:03:57]} Qg6 {[%emt 0:03:31]} 13. Nge2 {[%emt 0:09:11]} O-O {[%emt 0:04:45]} 14. O-O {[%emt 0:07:19]} h5 {[%emt 0:02:37]} 15. e4 {[%emt 0:09:37]} Na6 {[%emt 0:02:32]} 16. Be3 {[%emt 0:00:34]} Nh7 {[%emt 0:05:01]} 17. Qg2 {[%emt 0:01:54]} f5 {[%emt 0:12:17]} 18. f4 {[%emt 0:02:27]} Nb4 {[%emt 0:11:03]} 19. Rad1 {[%emt 0:01:48]} fxe4 {[%emt 0:02:54]} 20. Nxe4 {[%emt 0:01:27]} Nxa2 {[%emt 0:00:36]} 21. Bd2 {[%emt 0:01:45]} a5 {[%emt 0:00:10]} 22. Ra1 {[%emt 0:05:40]} ({White should play} 22. f5 $16 Qe8 23. Qf3) 22... Nb4 {[%emt 0:00:19]} 23. f5 {[%emt 0:03:19]} Qe8 {[%emt 0:02:12]} 24. h3 {[%emt 0:03:41]} b5 {[%emt 0:04:34] [#]} 25. g4 $1 {[%emt 0:01:59]} hxg4 {[%emt 0:02:06]} (25... Qd7 $16 {was worth a try.}) 26. hxg4 {[%emt 0:00:01]} bxc4 {[%emt 0:01:30]} 27. bxc4 {[%emt 0:00:53]} Nc2 {[%emt 0:10:29]} 28. Ra2 {[%emt 0:07:19]} Nd4 {[%emt 0:08:22]} 29. Nxd4 {[%emt 0:00:06]} ({Inferior is} 29. Rxa5 Rxa5 30. Bxa5 Nxe2+ 31. Qxe2 Qa4 $11) 29... exd4 {[%emt 0:00:08]} 30. Ra3 {[%emt 0:04:44]} Bf6 $2 {[%emt 0:02:56]} (30... Bh4 {keeps fighting.}) 31. g5 $18 {[%emt 0:02:05]} Be5 {[%emt 0:02:36]} 32. Rh3 {[%emt 0:01:43]} g6 {[%emt 0:01:20]} 33. Rh6 {[%emt 0:02:55]} Rxf5 {[%emt 0:01:16]} 34. Rxf5 {[%emt 0:00:18]} gxf5 {[%emt 0:00:03]} 35. Nf6+ {[%emt 0:00:17]} 1-0

[Event "Int SVK-ch Open 2020"]
[Site "Drienica"]
[Date "2020.08.15"]
[Round "9.6"]
[White "Kolesar, Milan"]
[Black "Macko, Michal"]
[Result "1/2-1/2"]
[ECO "D41"]
[WhiteElo "2186"]
[BlackElo "2148"]
[Annotator "ChessBase"]
[PlyCount "32"]
[EventDate "2020.08.07"]
[EventType "swiss"]
[EventCountry "SVK"]
[SourceTitle "playchess.com"]
[Source "ChessBase"]
[SourceQuality "1"]
[TimeControl "40/5400+30:1800+30"]

1. Nf3 {[%emt 0:00:22]} d5 {[%emt 0:00:00]} 2. d4 {[%emt 0:00:09]} Nf6 {[%emt 0:00:52]} 3. c4 {[%emt 0:00:08]} e6 {[%emt 0:00:24]} 4. Nc3 {[%emt 0:00:31]} c5 {[%emt 0:00:30]} 5. cxd5 {[%emt 0:00:16]} Nxd5 {[%emt 0:00:10]} 6. e3 {[%emt 0:00:13]} Nxc3 {[%emt 0:00:15]} 7. bxc3 {[%emt 0:00:09]} cxd4 {[%emt 0:00:13]} 8. exd4 {[%emt 0:01:05]} Be7 {[%emt 0:00:06]} 9. Bd3 {[%emt 0:00:07]} O-O {[%emt 0:00:10]} 10. O-O {[%emt 0:00:11]} Qc7 {[%emt 0:00:52]} 11. Qc2 {[%emt 0:03:27]} h6 {[%emt 0:00:27]} 12. Bb2 {[%emt 0:09:28]} b6 {[%emt 0:01:13]} 13. Qe2 {[%emt 0:02:38]} Bb7 {[%emt 0:00:12]} 14. Rac1 {[%emt 0:00:58]} Nd7 {[%emt 0:01:32]} 15. Be4 {[%emt 0:18:56]} Bxe4 {[%emt 0:02:12]} 16. Qxe4 {[%emt 0:00:13]} Qc4 {[%emt 0:00:43]} 1/2-1/2